bitfinex-derivatives/quotes_BTCF0:USTF0_20250509
["timestamp","ask_amount","ask_price","bid_price","bid_amount"]
[1746807259811,1.08031307,102910.0,102900.0,0.001]
[1746807260015,1.12548963,102910.0,102900.0,0.001]
[1746807260818,0.95668736,102910.0,102900.0,0.1953537]
[1746807261018,0.85951136,102910.0,102900.0,0.1953537]
[1746807261414,1.02831363,102910.0,102900.0,0.1953537]
[1746807261714,1.02831363,102910.0,102900.0,0.2283537]
[1746807261916,0.85951136,102910.0,102900.0,0.2283537]
[1746807262217,0.85951136,102910.0,102900.0,0.2584537]
[1746807263020,0.8193348,102910.0,102900.0,0.2584537]
[1746807263319,0.98813707,102910.0,102900.0,0.2584537]
[1746807263617,0.98513707,102910.0,102900.0,0.2584537]
[1746807263818,0.98513707,102910.0,102900.0,0.1953537]
[1746807264424,0.98213707,102910.0,102900.0,0.1943537]
[1746807264719,0.8133348,102910.0,102900.0,0.1943537]
[1746807264919,0.8133348,102910.0,102900.0,0.2271537]
[1746807265113,0.98013707,102910.0,102900.0,0.2590537]
[1746807265313,0.98613707,102910.0,102900.0,0.2590537]
[1746807266520,0.8173348,102910.0,102900.0,0.2590537]
[1746807266907,0.1943537,102900.0,102890.0,0.3401314]
[1746807267221,0.4186537,102900.0,102890.0,0.3562392]
[1746807268027,0.7814537,102900.0,102890.0,0.3562392]
[1746807268323,0.7834537,102900.0,102890.0,0.3562392]
[1746807268513,0.95225597,102900.0,102890.0,0.2590578]
[1746807268709,0.95225597,102900.0,102890.0,0.2271578]
[1746807270523,0.7834537,102900.0,102890.0,0.2271578]
[1746807271019,0.7834537,102900.0,102890.0,0.2589578]
[1746807272115,0.3901537,102900.0,102890.0,0.42776007]
[1746807272622,0.7509537,102900.0,102890.0,0.2589578]
[1746807272923,0.7509537,102900.0,102890.0,0.42776007]
[1746807273318,0.7509537,102900.0,102890.0,0.2589578]
[1746807273715,0.7509537,102900.0,102890.0,0.42776007]
[1746807274122,0.7509537,102900.0,102890.0,0.2589578]
[1746807274919,0.7821537,102900.0,102890.0,0.2589578]
[1746807275125,0.1958,102900.0,102890.0,0.2589578]
[1746807275326,0.1958,102900.0,102890.0,0.42776007]
[1746807275327,0.164,102900.0,102890.0,0.42776007]
[1746807275838,0.7191537,102900.0,102890.0,0.2589578]
[1746807276125,0.7521537,102900.0,102890.0,0.2589578]
[1746807276327,0.7501537,102900.0,102890.0,0.2589578]
[1746807276921,0.7481537,102900.0,102890.0,0.2589578]
[1746807277725,0.7481537,102900.0,102890.0,0.42776007]
[1746807277919,0.7481537,102900.0,102890.0,0.2589578]
[1746807278627,0.5538,102900.0,102890.0,0.2589578]
[1746807279015,0.5538,102900.0,102890.0,0.42776007]
[1746807279220,0.5208,102900.0,102890.0,0.42776007]
[1746807280025,0.5208,102900.0,102890.0,0.2589578]
[1746807280224,0.16,102900.0,102890.0,0.42776007]
[1746807280432,0.16,102900.0,102890.0,0.6197578]
[1746807280731,0.16,102900.0,102890.0,0.78856007]
[1746807281130,0.16,102900.0,102890.0,0.6197578]
[1746807281630,0.16,102900.0,102890.0,0.78856007]
[1746807281836,0.16728,102900.0,102890.0,0.78856007]
[1746807282137,0.52808,102900.0,102890.0,0.2589578]
[1746807282635,0.55978,102900.0,102890.0,0.2589578]
[1746807284125,0.55978,102900.0,102890.0,0.42776007]
[1746807284727,0.7541337,102900.0,102890.0,0.2589578]
[1746807285227,0.55978,102900.0,102890.0,0.2589578]
[1746807285431,0.55978,102900.0,102890.0,0.42776007]
[1746807285620,0.55978,102900.0,102890.0,0.2589578]
[1746807286333,0.7541337,102900.0,102890.0,0.2589578]
[1746807287131,0.7857337,102900.0,102890.0,0.2589578]
[1746807287827,0.1943726,102890.0,102880.0,0.322069]
[1746807288032,0.6495726,102890.0,102880.0,0.386169]
[1746807288334,0.8095726,102890.0,102880.0,0.386169]
[1746807289046,0.8095726,102890.0,102880.0,0.388169]
[1746807289226,0.8095726,102890.0,102880.0,0.390169]
[1746807289423,0.8095726,102890.0,102880.0,0.388169]
[1746807289623,0.8115726,102890.0,102880.0,0.388169]
[1746807289822,0.8115726,102890.0,102880.0,0.386169]
[1746807290033,0.8135726,102890.0,102880.0,0.386169]
[1746807290833,0.4527726,102890.0,102880.0,0.386169]
[1746807291336,0.8135726,102890.0,102880.0,0.386169]
[1746807293140,0.8135726,102890.0,102880.0,0.355669]
[1746807294339,0.8135726,102890.0,102880.0,0.52447127]
[1746807294538,0.8135726,102890.0,102880.0,0.355669]
[1746807297442,0.8877903,102890.0,102880.0,0.355669]
[1746807301445,0.8135726,102890.0,102880.0,0.355669]
[1746807301641,0.1963,102890.0,102880.0,0.52447127]
[1746807301846,0.0783299,102890.0,102880.0,1.07966316]
[1746807302148,0.004,102890.0,102880.0,1.23966316]
[1746807302341,0.13057832,102900.0,102890.0,0.1943726]
[1746807302543,0.13057832,102900.0,102890.0,0.8421726]
[1746807302846,0.13057832,102900.0,102890.0,1.02604594]
[1746807303040,0.32493202,102900.0,102890.0,0.76203956]
[1746807303347,0.13057832,102900.0,102890.0,0.93084183]
[1746807304837,0.13057832,102900.0,102890.0,0.76203956]
[1746807305036,0.13057832,102900.0,102890.0,0.93084183]
[1746807305645,0.32493202,102900.0,102890.0,0.76203956]
[1746807305940,0.32493202,102900.0,102890.0,0.93084193]
[1746807306146,0.51533202,102900.0,102890.0,0.93084193]
[1746807306548,0.7528337,102900.0,102890.0,0.57004193]
[1746807306842,0.3920337,102900.0,102890.0,0.57004193]
[1746807307043,0.19768,102900.0,102890.0,0.57004193]
[1746807307243,0.3920337,102900.0,102890.0,0.57004193]
[1746807307847,0.3616337,102900.0,102890.0,1.90123966]
[1746807308045,0.3616337,102900.0,102890.0,2.07004193]
[1746807308245,0.3937337,102900.0,102890.0,2.07004193]
[1746807308642,0.3937337,102900.0,102890.0,2.43084193]
[1746807309151,0.00728,102900.0,102890.0,2.43084193]
[1746807309540,0.00728,102900.0,102890.0,2.43083004]
[1746807310238,0.16728,102900.0,102890.0,2.43083004]
[1746807310742,0.4238337,102900.0,102890.0,2.07003004]
[1746807310941,0.4238337,102900.0,102890.0,1.90122777]
[1746807311136,0.4566337,102900.0,102890.0,1.90123512]
[1746807311547,0.26228,102900.0,102890.0,1.90123512]
[1746807311744,0.62543597,102900.0,102890.0,0.24123923]
[1746807312051,0.98623597,102900.0,102890.0,0.20943923]
[1746807312244,0.8174337,102900.0,102890.0,0.20943923]
[1746807313749,0.98623597,102900.0,102890.0,0.20943923]
[1746807314740,1.08342397,102900.0,102890.0,0.01506663]
[1746807314941,0.1943915,102880.0,102870.0,0.375268]
[1746807315246,0.8816,102880.0,102870.0,0.372868]
[1746807315444,1.1722915,102880.0,102870.0,0.372868]
[1746807316251,1.1722915,102880.0,102870.0,0.376868]
[1746807316448,1.1722915,102880.0,102870.0,0.380868]
[1746807316650,1.1752915,102880.0,102870.0,0.376868]
[1746807316852,1.1752915,102880.0,102870.0,0.409368]
[1746807317744,1.1752915,102880.0,102870.0,0.2611956]
[1746807318240,1.1753109,102880.0,102870.0,0.2611956]
[1746807318746,1.1753109,102880.0,102870.0,0.2571956]
[1746807318952,1.1783109,102880.0,102870.0,0.2571956]
[1746807319452,1.34711317,102880.0,102870.0,0.2246956]
[1746807319954,1.1783109,102880.0,102870.0,0.2246956]
[1746807320251,0.1944298,102870.0,102860.0,0.3389462]
[1746807320470,0.1944487,102860.0,102850.0,0.58821936]
[1746807320648,0.82005097,102860.0,102850.0,0.58821936]
[1746807321249,0.98005097,102860.0,102850.0,0.58821936]
[1746807321453,0.8112487,102860.0,102850.0,0.58821936]
[1746807321648,0.6168,102860.0,102850.0,0.62091936]
[1746807321851,0.6168,102860.0,102850.0,0.65351936]
[1746807322551,0.8112487,102860.0,102850.0,0.308371]
[1746807322751,0.98005097,102860.0,102850.0,0.2271676]
[1746807323047,0.84325596,102860.0,102850.0,0.2271676]
[1746807323249,1.01205823,102860.0,102850.0,0.2271676]
[1746807323448,0.84325596,102860.0,102850.0,0.2271676]
[1746807324550,0.28800726,102860.0,102850.0,0.2597676]
[1746807324752,0.22520726,102860.0,102850.0,0.42856987]
[1746807324943,0.58600726,102860.0,102850.0,0.2914676]
[1746807325255,0.58600726,102860.0,102850.0,0.46026987]
[1746807326150,0.58600726,102860.0,102850.0,0.2914676]
[1746807326856,0.58600726,102860.0,102850.0,0.47496895]
[1746807327554,0.81145596,102860.0,102850.0,0.27446668]
[1746807327746,0.98025823,102860.0,102850.0,0.27446668]
[1746807327943,0.81145596,102860.0,102850.0,0.27446668]
[1746807329755,0.81145596,102860.0,102850.0,0.27445686]
[1746807329957,0.81145596,102860.0,102850.0,0.2597676]
[1746807331658,0.81145596,102860.0,102850.0,0.2271676]
[1746807331858,0.98025823,102860.0,102850.0,0.2271676]
[1746807332354,0.81145596,102860.0,102850.0,0.1944676]
[1746807333354,0.1944676,102850.0,102840.0,0.34278581]
[1746807333560,0.81586987,102850.0,102840.0,0.22764052]
[1746807333955,0.81586987,102850.0,102840.0,0.00398658]
[1746807334258,0.1945054,102830.0,102820.0,0.25738496]
[1746807334459,0.1945244,102820.0,102810.0,0.19852694]
[1746807334758,0.81562667,102820.0,102810.0,0.03708774]
[1746807334953,0.6468244,102820.0,102810.0,0.23163104]
[1746807335153,0.8068244,102820.0,102810.0,0.23163104]
[1746807335348,0.6123,102820.0,102810.0,0.23163104]
[1746807335555,0.6123,102820.0,102810.0,0.43283331]
[1746807336059,0.6153,102820.0,102810.0,0.43283331]
[1746807336259,0.6183,102820.0,102810.0,0.43283331]
[1746807336463,0.6183,102820.0,102810.0,0.26403104]
[1746807338462,0.6183,102820.0,102810.0,0.2782798]
[1746807338866,0.62559,102820.0,102810.0,0.2782798]
[1746807339050,0.8201144,102820.0,102810.0,0.2782798]
[1746807339255,0.62559,102820.0,102810.0,0.2782798]
[1746807340062,0.1293259,102820.0,102810.0,1.26790641]
[1746807340255,0.01329,102820.0,102810.0,1.26790641]
[1746807340655,0.01329,102820.0,102810.0,2.43030187]
[1746807340861,0.01329,102820.0,102810.0,2.76790641]
[1746807341456,0.01029,102820.0,102810.0,2.76990641]
[1746807342159,0.00729,102820.0,102810.0,2.77190641]
[1746807348459,0.3918,102840.0,102830.0,0.1945054]
[1746807348666,0.3918,102840.0,102830.0,0.36330767]
[1746807348667,0.425,102840.0,102830.0,0.36330767]
[1746807348867,0.46688254,102860.0,102850.0,0.1944676]
[1746807349164,0.13928254,102860.0,102850.0,0.36326987]
[1746807349361,0.13928254,102860.0,102850.0,0.78546987]
[1746807349762,0.13928254,102860.0,102850.0,0.2558676]
[1746807350063,0.29928254,102860.0,102850.0,0.42466987]
[1746807350264,0.33238254,102860.0,102850.0,0.42466987]
[1746807351162,0.69418254,102860.0,102850.0,0.42466987]
[1746807351658,0.88863124,102860.0,102850.0,0.42466987]
[1746807351857,0.88863124,102860.0,102850.0,0.2245676]
[1746807351858,0.89063124,102860.0,102850.0,0.2245676]
[1746807352057,1.05943351,102860.0,102850.0,0.2245676]
[1746807352271,0.89063124,102860.0,102850.0,0.1944676]
[1746807352677,0.81638555,102860.0,102850.0,0.1944676]
[1746807356756,0.98518782,102860.0,102850.0,0.1944676]
[1746807356960,0.81638555,102860.0,102850.0,0.1944676]
[1746807357860,0.81638555,102860.0,102850.0,0.2253676]
[1746807358066,0.81638555,102860.0,102850.0,0.2581676]
[1746807358467,0.62193685,102860.0,102850.0,0.2581676]
[1746807358769,0.26113685,102860.0,102850.0,0.42696987]
[1746807358967,0.62193685,102860.0,102850.0,0.2581676]
[1746807359669,0.62193685,102860.0,102850.0,0.42696987]
[1746807360467,0.58883685,102860.0,102850.0,0.42696987]
[1746807360873,0.22803685,102860.0,102850.0,0.42696987]
[1746807361172,0.58883685,102860.0,102850.0,0.42696987]
[1746807361373,0.58883685,102860.0,102850.0,0.88499411]
[1746807361374,0.163,102860.0,102850.0,0.88499411]
[1746807361575,0.1900502,102860.0,102850.0,0.88499411]
[1746807362275,0.0300502,102860.0,102850.0,0.88499411]
[1746807362862,0.0300502,102860.0,102850.0,0.52419411]
[1746807363069,0.0270502,102860.0,102850.0,0.52419411]
[1746807363378,0.53713569,102870.0,102860.0,0.1944487]
[1746807363570,0.7591496,102870.0,102860.0,0.2923487]
[1746807364171,1.08795187,102870.0,102860.0,0.0657]
[1746807364368,0.29168,102860.0,102850.0,0.1944654]
[1746807364567,0.7648962,102860.0,102850.0,0.1944654]
[1746807364774,0.71628,102860.0,102850.0,0.1944654]
[1746807365073,0.0486169,102850.0,102820.0,0.1481724]
[1746807365371,0.72410767,102830.0,102820.0,0.3747968]
[1746807365568,0.3608,102830.0,102820.0,0.3747968]
[1746807365770,0.4244,102830.0,102820.0,0.4073968]
[1746807366280,0.5844,102830.0,102820.0,0.4093968]
[1746807366865,0.5844,102830.0,102820.0,0.4073968]
[1746807367069,0.5844,102830.0,102820.0,0.58119907]
[1746807367373,0.5844,102830.0,102820.0,0.58619907]
[1746807367576,0.2236,102830.0,102820.0,0.58619907]
[1746807367773,0.5844,102830.0,102820.0,0.58619907]
[1746807367971,0.2236,102830.0,102820.0,0.58619907]
[1746807368475,0.5844,102830.0,102820.0,0.43802667]
[1746807369481,0.5844,102830.0,102820.0,0.2692244]
[1746807369870,0.5844,102830.0,102820.0,0.43802667]
[1746807370274,0.5844,102830.0,102820.0,0.2692244]
[1746807370471,0.7789054,102830.0,102820.0,0.2692244]
[1746807370673,0.5844,102830.0,102820.0,0.2692244]
[1746807370973,0.7789054,102830.0,102820.0,0.2692244]
[1746807371174,0.8095054,102830.0,102820.0,0.2692244]
[1746807371370,0.615,102830.0,102820.0,0.2692244]
[1746807371966,0.8095054,102830.0,102820.0,0.2045244]
[1746807372174,0.97830767,102830.0,102820.0,0.01]
[1746807372772,0.8095054,102830.0,102820.0,0.01]
[1746807372981,0.97830767,102830.0,102820.0,0.01]
[1746807373179,0.8095054,102830.0,102820.0,0.01]
[1746807373371,0.97830767,102830.0,102820.0,0.01]
[1746807373579,0.1945244,102820.0,102810.0,0.0182365]
[1746807373782,0.78782667,102820.0,102810.0,0.2127798]
[1746807374169,0.94782667,102820.0,102810.0,0.00398774]
[1746807374373,1.04509067,102820.0,102810.0,0.00398774]
[1746807375274,1.06084017,102820.0,102810.0,0.00398774]
[1746807378782,0.7947739,102820.0,102810.0,0.00398774]
[1746807378986,0.7947739,102820.0,102810.0,0.19853104]
[1746807379384,1.03782186,102820.0,102810.0,0.19853104]
[1746807379582,0.86901959,102820.0,102810.0,0.19853104]
[1746807379777,0.86901959,102820.0,102810.0,0.00398774]
[1746807379778,1.03782186,102820.0,102810.0,0.00398774]
[1746807382087,0.1945433,102810.0,102800.0,0.1]
[1746807382291,1.00549734,102810.0,102800.0,0.1]
[1746807382587,1.00549734,102810.0,102800.0,0.08567126]
[1746807382885,1.00549734,102810.0,102800.0,0.10040577]
[1746807383186,1.16549734,102810.0,102800.0,0.10340577]
[1746807383387,0.8278928,102810.0,102800.0,0.10340577]
[1746807383683,1.16549734,102810.0,102800.0,0.10340577]
[1746807384291,1.26276934,102810.0,102800.0,0.08959677]
[1746807384683,1.44780934,102810.0,102800.0,0.08959677]
[1746807384990,1.27900707,102810.0,102800.0,0.08959677]
[1746807385379,1.18173507,102810.0,102800.0,0.28415897]
[1746807385581,1.18173507,102810.0,102800.0,0.31685897]
[1746807385790,1.18173507,102810.0,102800.0,0.12229677]
[1746807386393,1.0129328,102810.0,102800.0,0.12229677]
[1746807386592,1.18173507,102810.0,102800.0,0.12229677]
[1746807386990,1.0129328,102810.0,102800.0,0.08959677]
[1746807387197,1.18173507,102810.0,102800.0,0.08959677]
[1746807389387,0.1945622,102800.0,102790.0,0.02622893]
[1746807389581,0.1945811,102790.0,102780.0,0.24475672]
[1746807389781,0.81768337,102790.0,102780.0,0.22998901]
[1746807390186,0.97768337,102790.0,102780.0,0.22998901]
[1746807390392,0.99343287,102790.0,102780.0,0.22998901]
[1746807390791,0.99343287,102790.0,102780.0,0.23498901]
[1746807391497,0.85232061,102790.0,102780.0,0.23498901]
[1746807392698,1.02112288,102790.0,102780.0,0.26798901]
[1746807392894,1.02112288,102790.0,102780.0,0.27198901]
[1746807394201,0.85232061,102790.0,102780.0,0.27198901]
[1746807394499,1.02112288,102790.0,102780.0,0.27198901]
[1746807394695,1.02112288,102790.0,102780.0,0.07738891]
[1746807394890,1.02112288,102790.0,102780.0,0.27198901]
[1746807397295,1.02112288,102790.0,102780.0,0.01298891]
[1746807397601,1.02112288,102790.0,102770.0,0.06083993]
[1746807397602,0.1946001,102780.0,102770.0,0.06083993]
[1746807397791,0.78720237,102780.0,102770.0,0.06083993]
[1746807398392,0.94720237,102780.0,102770.0,0.02863993]
[1746807398602,0.96295187,102780.0,102770.0,0.02863993]
[1746807398993,0.96295187,102780.0,102770.0,0.03463993]
[1746807399200,0.97024187,102780.0,102770.0,0.03463993]
[1746807399402,0.97124187,102780.0,102770.0,0.04163993]
[1746807400590,1.14004414,102780.0,102770.0,0.013]
[1746807401096,1.14004414,102780.0,102770.0,0.00087]
[1746807401396,0.1946379,102760.0,102750.0,0.03509008]
[1746807401595,0.9319874,102760.0,102750.0,0.0327]
[1746807401793,1.16271644,102760.0,102750.0,0.04755244]
[1746807402191,1.32271644,102760.0,102750.0,0.04755244]
[1746807402594,1.32371644,102760.0,102750.0,0.05155244]
[1746807403019,1.32371644,102760.0,102750.0,0.05655244]
[1746807403199,1.15491417,102760.0,102750.0,0.05655244]
[1746807403400,1.32371644,102760.0,102750.0,0.05655244]
[1746807403801,1.32371644,102760.0,102750.0,0.08965244]
[1746807404802,1.50703644,102760.0,102750.0,0.08965244]
[1746807405004,1.33823417,102760.0,102750.0,0.08965244]
[1746807405192,1.50703644,102760.0,102750.0,0.08965244]
[1746807405504,1.33823417,102760.0,102750.0,0.08965244]
[1746807405699,1.50703644,102760.0,102750.0,0.08965244]
[1746807405905,1.50703644,102760.0,102750.0,0.28430934]
[1746807406200,1.09281417,102760.0,102750.0,0.28430934]
[1746807406702,1.12521417,102760.0,102750.0,0.28430934]
[1746807407204,1.29401644,102760.0,102750.0,0.28430934]
[1746807407907,1.29401644,102760.0,102750.0,0.08965244]
[1746807408200,1.32581644,102760.0,102750.0,0.08965244]
[1746807409807,1.12521417,102760.0,102750.0,0.28430934]
[1746807410107,1.29401644,102760.0,102750.0,0.08965244]
[1746807410302,1.32581644,102760.0,102750.0,0.08965244]
[1746807412298,1.32581644,102760.0,102750.0,0.02385244]
[1746807412497,0.1946569,102750.0,102740.0,0.0322]
[1746807412699,0.1946758,102740.0,102730.0,0.0304]
[1746807412901,0.96913807,102740.0,102730.0,0.0626]
[1746807413201,1.12913807,102740.0,102730.0,0.0626]
[1746807413603,1.14488757,102740.0,102730.0,0.0626]
[1746807415099,1.14588757,102740.0,102730.0,0.0646]
[1746807415300,1.14588757,102740.0,102730.0,0.0656]
[1746807416208,1.16023484,102740.0,102730.0,0.003]
[1746807417108,0.99143257,102740.0,102730.0,0.003]
[1746807417306,1.16023484,102740.0,102730.0,0.0331]
[1746807418104,1.16023484,102740.0,102730.0,0.0648]
[1746807419505,1.16023484,102740.0,102730.0,0.003]
[1746807420202,1.16023484,102740.0,102730.0,0.0341]
[1746807420397,0.98811257,102740.0,102730.0,0.2287948]
[1746807420603,0.9736453,102740.0,102730.0,0.2608948]
[1746807420812,0.9434453,102740.0,102730.0,0.2608948]
[1746807421208,0.7834453,102740.0,102730.0,0.2608948]
[1746807421607,0.6039253,102740.0,102730.0,0.2608948]
[1746807421911,0.5722253,102740.0,102730.0,0.42969707]
[1746807422212,0.5722253,102740.0,102730.0,0.2608948]
[1746807424311,0.6046253,102740.0,102730.0,0.2608948]
[1746807424816,0.6046253,102740.0,102730.0,0.27560088]
[1746807425011,0.77342757,102740.0,102730.0,0.27560088]
[1746807425806,0.77342757,102740.0,102730.0,0.08090608]
[1746807426008,0.80392757,102740.0,102730.0,0.08090608]
[1746807426212,0.96392757,102740.0,102730.0,0.08090608]
[1746807427415,0.96392757,102740.0,102730.0,0.0662]
[1746807428020,0.96392757,102740.0,102730.0,0.2608948]
[1746807428210,0.96392757,102740.0,102730.0,0.0662]
[1746807428406,0.96392757,102740.0,102730.0,0.2608948]
[1746807428723,0.96392757,102740.0,102730.0,0.0662]
[1746807428910,0.96392757,102740.0,102730.0,0.2608948]
[1746807429112,0.97835629,102740.0,102730.0,0.2608948]
[1746807429616,0.97735629,102740.0,102730.0,0.2588948]
[1746807429813,0.8091253,102740.0,102730.0,0.2598948]
[1746807430016,0.94742757,102740.0,102730.0,0.2598948]
[1746807430216,0.78742757,102740.0,102730.0,0.2598948]
[1746807430419,0.4239495,102740.0,102730.0,0.2598948]
[1746807430618,0.2254253,102740.0,102730.0,0.42869707]
[1746807430821,0.5862253,102740.0,102730.0,0.42869707]
[1746807431120,0.5862253,102740.0,102730.0,0.2598948]
[1746807432323,0.5862253,102740.0,102730.0,0.27477222]
[1746807432518,0.3915495,102740.0,102730.0,0.27477222]
[1746807432819,0.3988495,102740.0,102730.0,0.27477222]
[1746807433223,0.0380495,102740.0,102730.0,0.5409123]
[1746807435119,0.0380495,102740.0,102730.0,0.53211003]
[1746807435416,0.0380495,102740.0,102730.0,0.7009123]
[1746807435818,0.0380495,102740.0,102730.0,1.8190483]
[1746807436021,0.17323994,102750.0,102740.0,0.1946758]
[1746807436219,0.17323994,102750.0,102740.0,1.42717549]
[1746807436409,0.34981732,102770.0,102760.0,0.1946379]
[1746807436616,0.34981732,102770.0,102760.0,0.20951532]
[1746807436809,0.71061732,102770.0,102760.0,0.30681532]
[1746807437420,0.34981732,102770.0,102760.0,0.30681532]
[1746807437618,0.12329832,102770.0,102760.0,0.57292698]
[1746807438215,0.12329832,102770.0,102760.0,0.73292698]
[1746807438622,0.12329832,102770.0,102760.0,1.14292698]
[1746807438815,0.12929832,102770.0,102760.0,1.14292698]
[1746807439125,0.12929832,102770.0,102760.0,1.60103497]
[1746807439526,0.12929832,102770.0,102760.0,1.4322327]
[1746807439722,0.12929832,102770.0,102760.0,1.58615755]
[1746807439921,0.12929832,102770.0,102760.0,1.60101739]
[1746807441120,0.12329832,102770.0,102760.0,1.60101739]
[1746807441619,0.00729,102780.0,102770.0,0.194619]
[1746807441825,0.00729,102780.0,102770.0,0.45763812]
[1746807442015,0.00729,102780.0,102770.0,0.55493812]
[1746807442212,0.00729,102780.0,102770.0,2.75050751]
[1746807443027,0.01029,102780.0,102770.0,2.75050751]
[1746807443223,0.01029,102780.0,102770.0,2.75047469]
[1746807443529,0.37109,102780.0,102770.0,2.38967469]
[1746807443719,0.01529,102780.0,102770.0,2.39067469]
[1746807444020,0.01529,102780.0,102770.0,2.48797469]
[1746807444216,0.01529,102780.0,102770.0,2.89797469]
[1746807444419,0.01529,102780.0,102770.0,3.25877469]
[1746807444824,0.0271246,102790.0,102780.0,0.1946001]
[1746807445025,0.3908,102800.0,102790.0,0.1945811]
[1746807445330,0.3908,102800.0,102790.0,0.42778337]
[1746807445827,0.4146328,102800.0,102790.0,0.2589811]
[1746807446429,0.4146328,102800.0,102790.0,0.42778337]
[1746807446926,0.4196328,102800.0,102790.0,0.42778337]
[1746807447125,0.5796328,102800.0,102790.0,0.42778337]
[1746807447331,0.1888328,102800.0,102790.0,1.31067016]
[1746807447626,0.1082054,102800.0,102790.0,1.58271016]
[1746807447925,0.004,102810.0,102800.0,0.1945622]
[1746807447926,1e-07,102810.0,102800.0,0.1945622]
[1746807448135,1e-07,102810.0,102800.0,1.25874454]
[1746807448632,0.12329832,102830.0,102820.0,0.1945244]
[1746807448823,0.12329832,102830.0,102820.0,0.78813247]
[1746807449025,0.12329832,102830.0,102820.0,0.88183247]
[1746807449221,0.6289766,102840.0,102830.0,0.1945054]
[1746807449527,0.07369,102840.0,102830.0,0.2573054]
[1746807449835,0.03484144,102840.0,102830.0,0.8841792]
[1746807450027,0.03484144,102840.0,102830.0,1.30895235]
[1746807450227,0.03484144,102840.0,102830.0,0.96291139]
[1746807450526,0.03484144,102840.0,102830.0,0.96291303]
[1746807450728,0.39564144,102840.0,102830.0,0.77935008]
[1746807450926,0.62192794,102840.0,102830.0,0.94815235]
[1746807451121,0.65202794,102840.0,102830.0,0.94815235]
[1746807451317,0.09674144,102840.0,102830.0,0.77935008]
[1746807451525,0.09674144,102840.0,102830.0,0.94815235]
[1746807451826,0.45854144,102840.0,102830.0,0.94815235]
[1746807452232,0.81302794,102840.0,102830.0,0.77935008]
[1746807452422,0.61854144,102840.0,102830.0,0.94815235]
[1746807452622,0.81302794,102840.0,102830.0,0.94815235]
[1746807453133,0.65302794,102840.0,102830.0,0.94815235]
[1746807453428,0.29222794,102840.0,102830.0,0.53815235]
[1746807454425,0.06764144,102840.0,102830.0,0.89895235]
[1746807455324,0.06764144,102840.0,102830.0,0.36935008]
[1746807455724,0.62292794,102840.0,102830.0,0.36935008]
[1746807455921,0.29432794,102840.0,102830.0,0.53815235]
[1746807456126,0.65512794,102840.0,102830.0,0.53815235]
[1746807456423,0.06764144,102840.0,102830.0,0.89895235]
[1746807456634,0.42844144,102840.0,102830.0,0.53815235]
[1746807457234,0.42844144,102840.0,102830.0,0.36935008]
[1746807457535,0.62292794,102840.0,102830.0,0.36935008]
[1746807457728,0.65392794,102840.0,102830.0,0.36935008]
[1746807457932,0.09864144,102840.0,102830.0,0.53815235]
[1746807458235,0.45944144,102840.0,102830.0,0.53815235]
[1746807458429,0.65392794,102840.0,102830.0,0.53815235]
[1746807458826,0.65392794,102840.0,102830.0,0.36935008]
[1746807459031,0.65392794,102840.0,102830.0,0.53815235]
[1746807459233,0.65392794,102840.0,102830.0,0.94815235]
[1746807459834,0.65392794,102840.0,102830.0,0.61927855]
[1746807460232,0.81392794,102840.0,102830.0,0.61927855]
[1746807460824,0.81392794,102840.0,102830.0,0.6045054]
[1746807461741,0.1945054,102830.0,102820.0,0.2431423]
[1746807462037,0.82050767,102830.0,102820.0,0.2431423]
[1746807462227,0.8117054,102830.0,102820.0,0.2431423]
[1746807462427,0.6172,102830.0,102820.0,0.41194457]
[1746807462635,0.6172,102830.0,102820.0,0.49102257]
[1746807462834,0.6172,102830.0,102820.0,0.47624457]
[1746807463241,0.4572,102830.0,102820.0,0.49102454]
[1746807463933,0.4572,102830.0,102820.0,0.32222227]
[1746807464135,0.6172,102830.0,102820.0,0.49102454]
[1746807464330,0.6182,102830.0,102820.0,0.49102454]
[1746807464640,0.6192,102830.0,102820.0,0.49102454]
[1746807464832,0.6182,102830.0,102820.0,0.49102454]
[1746807465032,0.6202,102830.0,102820.0,0.49102454]
[1746807465240,0.4602,102830.0,102820.0,0.49102454]
[1746807465830,0.6547054,102830.0,102820.0,0.49102454]
[1746807466026,0.6547054,102830.0,102820.0,0.32222227]
[1746807466233,0.8147054,102830.0,102820.0,0.49102454]
[1746807466641,0.6202,102830.0,102820.0,0.49102454]
[1746807467129,0.8147054,102830.0,102820.0,0.32222227]
[1746807467332,0.62749,102830.0,102820.0,0.47624457]
[1746807467532,0.62749,102830.0,102820.0,0.4910754]
[1746807468043,0.8219954,102830.0,102820.0,0.4910754]
[1746807468444,0.62749,102830.0,102820.0,0.4910754]
[1746807468644,0.62749,102830.0,102820.0,0.49108234]
[1746807469245,0.46749,102830.0,102820.0,0.49108234]
[1746807470549,0.46749,102830.0,102820.0,0.58833495]
[1746807471243,0.46749,102830.0,102820.0,0.41953268]
[1746807471547,0.46749,102830.0,102820.0,0.58833495]
[1746807472043,0.46649,102830.0,102820.0,0.58833495]
[1746807472545,0.46549,102830.0,102820.0,0.58833495]
[1746807473441,0.43299,102830.0,102820.0,0.61863495]
[1746807474044,0.46599,102830.0,102820.0,0.61863495]
[1746807476849,0.43299,102830.0,102820.0,0.61863495]
[1746807477044,0.40079,102830.0,102820.0,0.61863495]
[1746807477240,0.40079,102830.0,102820.0,0.77863495]
[1746807478139,0.40079,102830.0,102820.0,0.61863495]
[1746807478343,0.3935,102830.0,102820.0,0.61863495]
[1746807479659,0.3935,102830.0,102820.0,0.61870148]
[1746807483252,0.40079,102830.0,102820.0,0.61870148]
[1746807483843,0.43289,102830.0,102820.0,0.61870148]
[1746807486648,0.6273954,102830.0,102820.0,0.44989921]
[1746807486849,0.43289,102830.0,102820.0,0.49114887]
[1746807488357,0.43289,102830.0,102820.0,0.49116204]
[1746807489258,0.59289,102830.0,102820.0,0.49116204]
[1746807489454,0.7873954,102830.0,102820.0,0.32235977]
[1746807489659,0.59289,102830.0,102820.0,0.32235977]
[1746807490061,0.59289,102830.0,102820.0,0.32236199]
[1746807491260,0.59289,102830.0,102820.0,0.49116426]
[1746807491757,0.59289,102830.0,102820.0,0.47624457]
[1746807491963,0.59289,102830.0,102820.0,0.49115945]
[1746807496764,0.59289,102830.0,102820.0,0.32235718]
[1746807497066,0.59289,102830.0,102820.0,0.49115945]
[1746807498872,0.59289,102830.0,102820.0,0.4910335]
[1746807499361,0.56079,102830.0,102820.0,0.58828611]
[1746807500169,0.40079,102830.0,102820.0,0.58828611]
[1746807501667,0.43109,102830.0,102820.0,0.58828611]
[1746807502672,0.40079,102830.0,102820.0,0.58828611]
[1746807503062,0.03999,102830.0,102820.0,1.10908611]
[1746807503266,1e-07,102830.0,102820.0,1.10908611]
[1746807503662,1e-07,102830.0,102820.0,0.74828611]
[1746807503870,1e-07,102830.0,102820.0,2.24828611]
[1746807504764,1e-07,102830.0,102820.0,2.42632384]